Cogmind - Beta 13 @@@ ROGUE MODE // 2024.04.14 @ 18:44:54 Player: Kate+Gabe4evr Result: Destroyed by X-77 Beamer with Gatling Laser Performance ------------- Evolutions (5) 2500 Regions Visited (11) 2200 Robots Destroyed (139) 695 Value Destroyed (4903) 4903 Prototype IDs (20) 400 Alien Tech Used (0) 0 Bonus (613) 613 TOTAL SCORE: 11311 Bonus ------- High Alert Combat Kills 34 Follower Combat Kills 297 Met Data Miner 300 Friendly Fire -18 Cogmind --------- Core Integrity 0/1000 Matter 224/300 Energy 55/100 System Corruption 6% Temperature Cool (12) Movement Core (500) Ox9 Location -5/Factory Parts ------- > --- POWER (2) -------- (None) > --- PROPULSION (6) --- (None) > --- UTILITY (7) ------ Large Storage Unit Enhanced Optical Array 0b10 Decoder Chip [Looter] > --- WEAPON (2) ------- Plasma Rifle Beamcaster > --- INVENTORY (15) --- Fusion Compressor Power Amplifier Advanced Cooling System Advanced Sensor Array Launcher Guidance Computer Improved Kinecellerator Hardlight Generator Wave Gun Wave Gun Heavy Plasma Cannon Magnetic Acceleration Cannon Peak State ------------ > --- POWER ------------ Fission Core Fusion Compressor > --- PROPULSION ------- Medium Treads Flexi-carbon Leg Flexi-carbon Leg Flexi-carbon Leg > --- UTILITY ---------- Advanced Heat Sink Improved Cooling System Large Storage Unit Enhanced Optical Array 0b10 Decoder Chip [Looter] Makeshift Transmission Jammer Layered Medium Armor Plating > --- WEAPON ----------- Heavy Plasma Cannon Magnetic Acceleration Cannon > --- INVENTORY -------- Fusion Compressor Power Amplifier Improved Energy Well Advanced Sensor Array Launcher Guidance Computer Improved Kinecellerator Hardened Heavy Armor Plating Thermal Shield Hardlight Generator Beamcaster Wave Gun Wave Gun Wave Gun Grenade Launcher [Rating: 76] Favorites ----------- Power Light Angular Momentum Engine Engine Light Angular Momentum Engine Power Core Fission Core Propulsion Improved Medium Treads Treads Improved Medium Treads Leg Aluminum Leg Wheel Wheel Utility Large Storage Unit Device Advanced Heat Sink Storage Large Storage Unit Processor Enhanced Optical Array Hackware Hacking Suite Protection Light Armor Plating Weapon Heavy Plasma Cannon Energy Gun Improved Spread Laser Energy Cannon Heavy Plasma Cannon Ballistic Gun Improved Heavy Machine Gun Ballistic Cannon Advanced Assault Cannon Launcher Grenade Launcher Build | -11 -10 -9 -9 -8 -7 -6 -6 -6 -6 -5 -5 ------- Run | Yrd Mat Mat Sto Mat Fac Fac Low Low Dat Pro Fac Slots Evolved 10 | . . 2 . 2 2 2 . . . . 2 Power 1 | . . . . . . 1 . . . . . Propulsion 4 | . . 2 . . 1 . . . . . 1 Utility 5 | . . . . 2 1 1 . . . . 1 Weapon . | . . . . . . . . . . . . Parts Attached 148 | 6 6 5 24 18 14 32 1 4 . 10 28 Power 26 | 1 1 . 3 . 2 9 1 . . 2 7 Engine 17 | 1 1 . 3 . 2 7 1 . . 1 1 Core 9 | . . . . . . 2 . . . 1 6 Reactor . | . . . . . . . . . . . . Propulsion 41 | 2 3 3 8 5 3 12 . . . 1 4 Treads 5 | . . . . . . 4 . . . 1 . Leg 32 | 2 . 3 8 5 3 7 . . . . 4 Wheel 4 | . 3 . . . . 1 . . . . . Hover . | . . . . . . . . . . . . Flight . | . . . . . . . . . . . . Utility 41 | 1 2 2 3 7 7 8 . 3 . 2 6 Device 24 | 1 . . 2 4 5 6 . 2 . . 4 Storage 5 | . 2 2 1 . . . . . . . . Processor 2 | . . . . . . 1 . . . 1 . Hackware 1 | . . . . . . 1 . . . . . Protection 9 | . . . . 3 2 . . 1 . 1 2 Artifact . | . . . . . . . . . . . . Weapon 40 | 2 . . 10 6 2 3 . 1 . 5 11 Energy Gun 16 | 2 . . 4 4 1 . . . . . 5 Energy Cannon 7 | . . . 2 1 . 2 . . . 2 . Ballistic Gun 8 | . . . 4 . . 1 . . . 1 2 Ballistic Cannon 5 | . . . . 1 1 . . 1 . 1 1 Launcher 4 | . . . . . . . . . . 1 3 Special Weapon . | . . . . . . . . . . . . Impact Weapon . | . . . . . . . . . . . . Slashing Weapon . | . . . . . . . . . . . . Piercing Weapon . | . . . . . . . . . . . . Special Melee Weapon . | . . . . . . . . . . . . Unidentified Prototypes 9 | . 1 . 5 2 . 1 . . . . . Parts Lost 64 | . . . 10 4 6 16 . 2 . 9 17 Power 10 | . . . 1 . 1 2 . . . 3 3 Propulsion 26 | . . . 5 2 2 8 . . . 4 5 Utility 20 | . . . . 2 3 6 . 1 . 1 7 Weapon 8 | . . . 4 . . . . 1 . 1 2 Highest Loss Streak 10 | . . . 5 3 2 4 . 2 . 5 10 To Critical Strikes 1 | . . . . . . . . . . 1 . Average Slot Usage (%) 86 | . 96 100 79 97 95 86 87 93 93 74 76 Engine 7 | . 14 11 10 9 6 6 7 13 13 6 1 Core 2 | . . . . . . 4 . . . 4 7 Treads 7 | . . . . . . 8 26 26 26 8 2 Leg 17 | . 10 33 24 35 35 15 . . . . 14 Device 16 | . 14 11 11 16 25 22 20 18 13 8 12 Storage 7 | . 10 11 11 9 7 6 6 6 6 6 5 Processor 3 | . . . . . . 1 6 6 6 10 11 Hackware 2 | . . . . . . 3 6 6 6 5 . Protection 3 | . . . . 9 2 1 . 1 6 6 4 Energy Gun 4 | . 28 22 8 12 8 . . . . . 2 Energy Cannon 4 | . . . 6 2 . 5 6 6 6 6 2 Ballistic Gun 2 | . . . 6 . . 3 6 4 . . 1 Ballistic Cannon 2 | . . . . 2 5 2 . 1 6 5 2 Naked Turns . | . . . . . . . . . . . . Heaviest Build 70 | 8 53 53 38 46 52 68 58 64 64 65 70 Greatest Support 110 | 20 20 30 50 64 67 110 110 110 110 110 60 Greatest Overweight (x) 21 | . 2 1 2 1 1 2 . . . 21 13 Average Overweight (x) . | . 1 . . . . . . . . 2 . Largest Inventory Capacity 20 | 5 20 20 15 15 15 15 15 15 15 15 15 Average Capacity 14 | 5 15 13 10 15 15 15 15 15 15 15 15 Most Carried 15 | 2 9 8 12 15 15 15 15 15 15 15 15 Average Carried 13 | . 6 7 9 14 14 14 15 14 15 14 14 Final Capacity 20 | 5 20 10 15 15 15 15 15 15 15 15 15 Final Carried 15 | 2 9 8 12 15 15 15 15 15 15 14 11 Class Distribution -------------------- 68% | Mutant 31% | Scavenger-Mutant Dominant Class ---------------- Mutant | -10/Materials Mutant | -9/Materials Scavenger-Mutant | -9/Storage Scavenger-Mutant | -8/Materials Mutant | -7/Factory Mutant | -6/Factory Mutant | -6/Lower Caves Mutant | -6/Lower Caves Mutant | -6/Data Miner Mutant | -5/Proximity Caves Mutant | -5/Factory Resources | -11 -10 -9 -9 -8 -7 -6 -6 -6 -6 -5 -5 ----------- Run | Yrd Mat Mat Sto Mat Fac Fac Low Low Dat Pro Fac Matter Collected 3303 | 260 18 . 420 295 352 917 55 124 . 331 531 Remotely . | . . . . . . . . . . . . Salvage Created 6194 | 50 34 60 1159 621 672 2374 . 187 . 425 612 Parts 262 | 3 7 3 57 26 41 79 . 13 . 12 21 Haulers Intercepted 11 | . . . 5 2 . 3 . . . . 1 Recyclers Shooed 13 | . . . . . 3 7 . . . . 3 Parts Field Recycled . | . . . . . . . . . . . . Retrieved Matter . | . . . . . . . . . . . . Parts Self-Destructed 33 | . . . . . . . 3 13 . 17 . Prevented . | . . . . . . . . . . . . Kills | -11 -10 -9 -9 -8 -7 -6 -6 -6 -6 -5 -5 ------- Run | Yrd Mat Mat Sto Mat Fac Fac Low Low Dat Pro Fac Combat Hostiles Destroyed 103 | 1 . 1 21 13 12 29 . 8 . 10 8 Guns 43 | 1 . 1 12 7 9 6 . 3 . . 4 Cannons 55 | . . . 9 6 3 20 . 5 . 9 3 AOE 2 | . . . . . . . . . . 1 1 Classes Destroyed 14 | 1 2 1 3 2 3 1 . . . . 1 Worker 4 | . . . 1 . 1 1 . . . . 1 Builder 4 | . 1 . . 1 . 1 . . . . 1 Hauler 11 | . . . 5 2 . 3 . . . . 1 Recycler 12 | . . . . . 4 7 . . . . 1 Operator 1 | . . . . . 1 . . . . . . Watcher 4 | . 1 . 1 1 . . . . . . 1 Swarmer 24 | . . . 4 . 4 7 . 8 . 1 . Saboteur 1 | . . . . . . . . . . . 1 Grunt 38 | 1 . . 10 5 2 10 . . . 7 3 Brawler 2 | . . . . 1 . . . . . 1 . Duelist 2 | . . . . . . 2 . . . . . Sentry 23 | . . 1 7 5 5 4 . . . 1 . Hunter 5 | . . . . 2 . 1 . . . . 2 Programmer 8 | . . . . . 1 5 . . . . 2 Best Kill Streak 9 | 1 2 1 4 4 4 9 . 4 . 4 3 Combat Bots Only 4 | 1 . 1 3 3 4 4 . 4 . 4 3 Max Kills in Single Turn 2 | 1 1 1 1 2 2 2 . 2 . 1 1 Gunslinging . | . . . . . . . . . . . . Exploded 1 | . . . . . . . . . . 1 1 Melee . | . . . . . . . . . . . . Uniques/NPCs Destroyed . | . . . . . . . . . . . . Combat | -11 -10 -9 -9 -8 -7 -6 -6 -6 -6 -5 -5 -------- Run | Yrd Mat Mat Sto Mat Fac Fac Low Low Dat Pro Fac Hostile Shots Fired 1034 | 2 . 12 174 60 145 221 . 34 . 104 282 Missed 296 | 1 . 3 40 13 46 71 . 11 . 30 81 Damage Taken 10938 | 10 34 111 1782 756 812 2193 . 341 . 1403 3496 Core 2300 | . . 27 342 203 122 362 . . . 235 1009 Absorbed by Shields 184 | . . . . . 108 76 . . . . . Core Remaining (%) 63 | 100 100 . 7 63 82 . . . . 29 . Volleys Fired 422 | 2 3 2 87 45 41 130 1 14 . 42 55 Largest 2 | 2 2 2 2 2 2 2 2 2 . 2 2 Hottest 180 | 90 90 90 143 150 155 138 105 138 . 180 143 Shots Fired 794 | 4 6 4 170 89 78 261 2 29 . 74 77 Gun 390 | 4 6 4 117 60 45 93 1 11 . . 49 Cannon 398 | . . . 53 29 33 168 1 18 . 70 26 Launcher 6 | . . . . . . . . . . 4 2 Special . | . . . . . . . . . . . . Kinetic 322 | . . . 43 19 33 130 1 14 . 29 53 Thermal 453 | 2 3 2 121 70 45 131 1 15 . 41 22 Explosive 6 | . . . . . . . . . . 4 2 Electromagnetic 13 | 2 3 2 6 . . . . . . . . Robot Hit Streak 16 | 2 3 4 16 14 8 14 . 5 . 14 11 Robot Miss Streak 13 | 1 1 . 4 13 12 5 . 8 . 4 2 Penetration Max . | . . . . . . . . . . . . Secondary Targets . | . . . . . . . . . . . . Shots Hit Robots 564 | 2 3 3 126 76 56 179 . 14 . 52 53 Core Hits 307 | 2 2 2 38 59 66 74 . 8 . 24 32 Critical Kills 3 | . . . . . . 3 . . . . . Critical Parts Destroyed 1 | . . . 1 . . . . . . . . Critical Strikes 16 | . . . 6 6 . 4 . . . . . Burn 8 | . . . 5 3 . . . . . . . Meltdown 3 | . . . . . . 3 . . . . . Destroy 1 | . . . 1 . . . . . . . . Blast 4 | . . . . 3 . 1 . . . . . Melee Attacks . | . . . . . . . . . . . . Impact . | . . . . . . . . . . . . Slashing . | . . . . . . . . . . . . Piercing . | . . . . . . . . . . . . Sneak Attacks . | . . . . . . . . . . . . Combat Hostiles . | . . . . . . . . . . . . Follow-up Attacks . | . . . . . . . . . . . . Damage Inflicted 15052 | 25 103 37 2258 1657 1331 5592 . 419 . 1714 1916 Guns 6006 | 25 67 33 1307 1090 888 1735 . 104 . . 757 Cannons 8158 | . . . 882 567 443 3821 . 315 . 1546 584 Explosions 809 | . 36 . 31 . . . . . . 168 574 Melee . | . . . . . . . . . . . . Ramming 79 | . . 4 38 . . 36 . . . . 1 Kinetic 5593 | . . . 495 423 443 2503 . 162 . 586 981 Thermal 8506 | 12 49 13 1680 1234 888 3053 . 257 . 960 360 Explosive 742 | . . . . . . . . . . 168 574 Electromagnetic 132 | 13 54 20 45 . . . . . . . . Impact . | . . . . . . . . . . . . Slashing . | . . . . . . . . . . . . Piercing . | . . . . . . . . . . . . Highest Corruption 11 | . . . . 10 1 10 10 10 10 11 5 Average Corruption 7 | . . . . 9 1 6 10 10 10 10 3 Corruption Purged . | . . . . . . . . . . . . Corruption Blocked . | . . . . . . . . . . . . Effects 151 | . . . . 6 5 51 18 21 6 37 7 Message Errors 44 | . . . . 2 1 12 6 8 1 12 2 Matter Fused 31 | . . . . 2 3 7 5 4 2 6 2 Heat Flow Errors 19 | . . . . 1 . 10 2 1 1 4 . Energy Discharges 15 | . . . . . . 3 3 3 1 3 2 Parts Rejected 2 | . . . . . . 2 . . . . . Data Loss (minor) 18 | . . . . 1 . 8 2 2 1 4 . Data Loss (major) 7 | . . . . . . 3 . 1 . 3 . Misfires 5 | . . . . . . 3 . 1 . 1 . Alerts 3 | . . . . . 1 1 . 1 . . . Weapon Failures 7 | . . . . . . 2 . . . 4 1 Overload Shots . | . . . . . . . . . . . . Overflow Damage 326 | . 6 . 4 6 18 211 . . . 70 11 Projectiles 316 | . . . . 6 18 211 . . . 70 11 Explosions 6 | . 6 . . . . . . . . . . Melee 4 | . . . 4 . . . . . . . . Knockbacks 20 | . . . . 2 2 6 . . . 4 6 Impact . | . . . . . . . . . . . . Kinetic 19 | . . . . 2 2 5 . . . 4 6 Secondary 1 | . . . . . . 1 . . . . . Self-Inflicted Damage 108 | . 34 . 38 36 . . . . . . . Shots 3 | . 1 . 1 1 . . . . . . . Rammed 1 | . . . . . . 1 . . . . . Targets Rammed 13 | . . 1 7 . . 4 . . . . 1 Kicked 12 | . . 1 7 . . 3 . . . . 1 Crushed . | . . . . . . . . . . . . Highest Temperature 453 | 60 10 4 173 453 59 276 213 231 229 404 448 Average Temperature 98 | 31 6 4 45 125 15 54 103 124 133 162 207 Received Heat Transfer 2576 | 6 . 48 789 216 209 399 . . . 445 464 Effects 19 | . . . . 8 . 3 . . . 1 7 Shutdowns 4 | . . . . . . . . . . 1 3 Energy Bleed 3 | . . . . 3 . . . . . . . Interference 8 | . . . . 3 . 3 . . . . 2 Matter Decay 3 | . . . . 2 . . . . . . 1 Short Circuit 1 | . . . . . . . . . . . 1 Siege Activations . | . . . . . . . . . . . . Robots Corrupted . | . . . . . . . . . . . . Combat Hostiles . | . . . . . . . . . . . . Parts Fried 1 | . . . 1 . . . . . . . . Impact Corruptions 1 | . . . 1 . . . . . . . . Robots Melted 3 | . . . . . . 3 . . . . . Combat Hostiles 3 | . . . . . . 3 . . . . . Parts Melted 30 | . . . 13 1 2 9 . 1 . 2 2 Heat Transferred 13317 | 37 87 37 3774 1564 960 4425 . 400 . 1500 533 Parts Sabotaged . | . . . . . . . . . . . . Parts Stolen . | . . . . . . . . . . . . Parts Stripped . | . . . . . . . . . . . . Power Chain Reactions 2 | . 1 . 1 . . . . . . . . Alert | -11 -10 -9 -9 -8 -7 -6 -6 -6 -6 -5 -5 ------- Run | Yrd Mat Mat Sto Mat Fac Fac Low Low Dat Pro Fac Peak Influence 446 | 20 43 72 446 324 334 416 . . . . 205 Initial 88 | . 13 17 29 77 88 84 . . . . 44 Average 173 | 4 31 27 265 160 185 217 . . . . 63 Maximum Alert Level 2 | . . . 2 1 1 2 . . . . 1 Low Security (%) 62 | 100 100 100 20 70 57 55 . . . . 99 Level 1 32 | . . . 64 29 42 36 . . . . . Level 2 5 | . . . 14 . . 8 . . . . . Level 3 . | . . . . . . . . . . . . Level 4 . | . . . . . . . . . . . . Level 5 . | . . . . . . . . . . . . High Security . | . . . . . . . . . . . . Max Security . | . . . . . . . . . . . . Squads Dispatched 20 | . . . 3 . 6 9 . . . . 2 Investigation 1 | . . . . . . 1 . . . . . Extermination 7 | . . . . . 1 4 . . . . 2 Reinforcement 7 | . . . 1 . 2 4 . . . . . Assault 2 | . . . 2 . . . . . . . . Garrison 3 | . . . . . 3 . . . . . . Intercept . | . . . . . . . . . . . . Searches Triggered . | . . . . . . . . . . . . Data Miner Redirects 1 | . . . . . . . . . . . 1 Construction Impeded 1 | . . . . . 1 . . . . . . Haulers Reinforced 1 | . . . . . . 1 . . . . . Active Scanning Responses . | . . . . . . . . . . . . Cargo Convoy Interrupts 1 | . . . . . . . . . . . 1 Stealth | -11 -10 -9 -9 -8 -7 -6 -6 -6 -6 -5 -5 --------- Run | Yrd Mat Mat Sto Mat Fac Fac Low Low Dat Pro Fac Distress Signals 9 | . . 2 3 2 . 1 . . . . 1 Communications Jammed 9 | . . . . . . . . . . . 9 Distress Signals 9 | . . . . . . . . . . . 9 Times Spotted 185 | 1 1 5 41 25 18 41 . 9 . 15 29 Peak Tracking Total 12 | 1 1 5 8 4 4 5 . 4 . 5 12 Tactical Retreats 13 | . . 1 2 1 2 2 . 1 . 2 2 Traps | -11 -10 -9 -9 -8 -7 -6 -6 -6 -6 -5 -5 ------- Run | Yrd Mat Mat Sto Mat Fac Fac Low Low Dat Pro Fac Traps Triggered 2 | . . . . . . 1 . . . . 1 Indirectly . | . . . . . . . . . . . . Trap Hack Attempts . | . . . . . . . . . . . . Triggered . | . . . . . . . . . . . . Disarmed . | . . . . . . . . . . . . Reprogrammed . | . . . . . . . . . . . . Reused . | . . . . . . . . . . . . Traps Extracted . | . . . . . . . . . . . . Installed . | . . . . . . . . . . . . Triggered . | . . . . . . . . . . . . Machines | -11 -10 -9 -9 -8 -7 -6 -6 -6 -6 -5 -5 ---------- Run | Yrd Mat Mat Sto Mat Fac Fac Low Low Dat Pro Fac Machines Disabled 9 | . . . 1 3 1 3 . . . . 1 Max in Single Turn 1 | . . . . 1 1 1 . . . . 1 Machines Repaired . | . . . . . . . . . . . . Machines Dismantled . | . . . . . . . . . . . . Machines Sabotaged . | . . . . . . . . . . . . Overloaded Fab Kills . | . . . . . . . . . . . . Hacking | -11 -10 -9 -9 -8 -7 -6 -6 -6 -6 -5 -5 --------- Run | Yrd Mat Mat Sto Mat Fac Fac Low Low Dat Pro Fac Machines Accessed 21 | . . 1 4 6 1 2 1 . 4 . 2 Terminals 15 | . . 1 4 6 1 2 . . . . 1 Fabricators . | . . . . . . . . . . . . Repair Stations . | . . . . . . . . . . . . Recycling Units . | . . . . . . . . . . . . Scanalyzers . | . . . . . . . . . . . . Garrison Access 1 | . . . . . . . . . . . 1 Total Hacks 50 | . . 1 6 6 1 2 2 . 30 . 2 Successful 39 | . . 1 3 3 . . 2 . 30 . . Failed 11 | . . . 3 3 1 2 . . . . 2 Catastrophic 3 | . . . . 2 . . . . . . 1 Database Lockouts . | . . . . . . . . . . . . Manual 12 | . . . 4 4 . 2 . . . . 2 Terminals 17 | . . 1 6 6 1 2 . . . . 1 Fabricators . | . . . . . . . . . . . . Repair Stations . | . . . . . . . . . . . . Recycling Units . | . . . . . . . . . . . . Scanalyzers . | . . . . . . . . . . . . Garrison Access 1 | . . . . . . . . . . . 1 Terminal Hacks 39 | . . 1 3 3 . . 2 . 30 . . Record 16 | . . 1 . 2 . . 2 . 11 . . Part Schematic 12 | . . . . . . . . . 12 . . Robot Schematic 4 | . . . . . . . . . 4 . . Robot Analysis 1 | . . . 1 . . . . . . . . Prototype ID Bank 3 | . . . . . . . . . 3 . . Open Door 1 | . . . 1 . . . . . . . . Unreport Threat 2 | . . . 1 1 . . . . . . . Fabricator Hacks . | . . . . . . . . . . . . Repair Station Hacks . | . . . . . . . . . . . . Recycling Unit Hacks . | . . . . . . . . . . . . Scanalyzer . | . . . . . . . . . . . . Garrison Access Hacks . | . . . . . . . . . . . . Unauthorized Hacks . | . . . . . . . . . . . . Terminals . | . . . . . . . . . . . . Fabricators . | . . . . . . . . . . . . Repair Stations . | . . . . . . . . . . . . Recycling Units . | . . . . . . . . . . . . Scanalyzers . | . . . . . . . . . . . . Garrison Access . | . . . . . . . . . . . . Data Cores Recovered . | . . . . . . . . . . . . Used . | . . . . . . . . . . . . Hacking Detections 10 | . . 1 1 4 . 2 . . . . 2 Full Trace Events . | . . . . . . . . . . . . Feedback Events . | . . . . . . . . . . . . Feedback Blocked . | . . . . . . . . . . . . Robot Schematics Acquired 4 | . . . . . . . . . 4 . . Robots Built . | . . . . . . . . . . . . Authchips . | . . . . . . . . . . . . Time . | . . . . . . . . . . . . Total Robot Build Rating . | . . . . . . . . . . . . Part Schematics Acquired 12 | . . . . . . . . . 12 . . Parts Built . | . . . . . . . . . . . . Authchips . | . . . . . . . . . . . . Time . | . . . . . . . . . . . . Total Part Build Rating . | . . . . . . . . . . . . Parts Repaired . | . . . . . . . . . . . . Time . | . . . . . . . . . . . . Parts Recycled . | . . . . . . . . . . . . Recycled Matter . | . . . . . . . . . . . . Retrieved Matter . | . . . . . . . . . . . . Retrieved Components . | . . . . . . . . . . . . Parts Scanalyzed . | . . . . . . . . . . . . Part Schematics Acquired . | . . . . . . . . . . . . Parts Damaged . | . . . . . . . . . . . . Bothacking | -11 -10 -9 -9 -8 -7 -6 -6 -6 -6 -5 -5 ------------ Run | Yrd Mat Mat Sto Mat Fac Fac Low Low Dat Pro Fac Used RIF Installer . | . . . . . . . . . . . . Robots Hacked . | . . . . . . . . . . . . Non-combat . | . . . . . . . . . . . . Combat . | . . . . . . . . . . . . Robot Hacks Applied . | . . . . . . . . . . . . Relay Couplers Released . | . . . . . . . . . . . . Fabnet Peak Effective % . | . . . . . . . . . . . . Robots Rewired . | . . . . . . . . . . . . Allies Hacked . | . . . . . . . . . . . . Hacks Repelled . | . . . . . . . . . . . . Allies | -11 -10 -9 -9 -8 -7 -6 -6 -6 -6 -5 -5 -------- Run | Yrd Mat Mat Sto Mat Fac Fac Low Low Dat Pro Fac Total Allies 3 | . . . 2 . . . . . . 1 . Largest Group 2 | . . . 2 . . . . . . 1 . Highest-Rated Group 96 | . . . 62 . . . . . . 96 . Highest-Rated Ally 96 | . . . 31 . . . . . . 96 . Total Orders . | . . . . . . . . . . . . Ally Attacks 52 | . . . 33 . . . . . . 19 . Total Damage 1300 | . . . 610 . . . . . . 690 . Kills 9 | . . . 6 . . . . . . 3 . Allies Corrupted . | . . . . . . . . . . . . Allies Melted . | . . . . . . . . . . . . Intel | -11 -10 -9 -9 -8 -7 -6 -6 -6 -6 -5 -5 ------- Run | Yrd Mat Mat Sto Mat Fac Fac Low Low Dat Pro Fac Robot Analysis Total 1 | . . . 1 . . . . . . . . Derelict Logs Recovered 5 | . . . . . . . 2 2 . 1 . Drone Launches . | . . . . . . . . . . . . Drone Recoveries . | . . . . . . . . . . . . Decoded 0b10 Intel 70 | . . . . . . . . . . . 70 Items 70 | . . . . . . . . . . . 70 Exploration | -11 -10 -9 -9 -8 -7 -6 -6 -6 -6 -5 -5 ------------- Run | Yrd Mat Mat Sto Mat Fac Fac Low Low Dat Pro Fac Turns Passed 8969 | 116 178 199 1214 1085 801 2051 514 662 138 921 1090 Spaces Moved 4142 | 93 132 114 400 660 411 892 319 341 87 246 447 Core 31 | 17 . . . . . . . . . 12 2 Treads 1380 | . . . . . . 354 319 341 87 234 45 Legs 2571 | 76 38 114 400 660 411 472 . . . . 400 Wheels 160 | . 94 . . . . 66 . . . . . Hover . | . . . . . . . . . . . . Flight . | . . . . . . . . . . . . Fastest Speed 50 | 50 95 120 120 120 122 130 160 160 160 160 120 Average Speed 163 | 107 116 148 176 122 123 175 160 160 160 292 191 Slowest Speed 1100 | 120 190 190 260 200 192 320 160 160 160 1100 700 Overloaded Moves . | . . . . . . . . . . . . Propulsion Burnouts . | . . . . . . . . . . . . Robots Hopped . | . . . . . . . . . . . . Cave-ins Triggered . | . . . . . . . . . . . . Exploration Rate (%) 38 | 9 22 19 52 59 15 24 69 53 75 50 15 Regions Visited 11 Branch Regions 5 Pre-discovered Areas 1 | . . . . . . . . . 1 . . Known Exits Taken 2 | . . . . . . . 1 . . 1 . Unknown Exits Taken 9 | 1 1 1 1 1 1 1 . 1 1 . . Scrap Searched 11 | . . . . . . . 2 8 . 1 . Spaces Dug . | . . . . . . . . . . . . Terrain Destroyed 116 | . 3 . 4 27 3 39 . 8 . 23 9 Melee . | . . . . . . . . . . . . Projectile 74 | . . . . 4 3 39 . 8 . 16 4 AOE 42 | . 3 . 4 23 . . . . . 7 5 Terrain Rammed . | . . . . . . . . . . . . Walls Destroyed . | . . . . . . . . . . . . Machines Disabled . | . . . . . . . . . . . . Actions | -11 -10 -9 -9 -8 -7 -6 -6 -6 -6 -5 -5 --------- Run | Yrd Mat Mat Sto Mat Fac Fac Low Low Dat Pro Fac Total 5530 | 102 147 138 735 846 623 1126 320 434 86 369 604 Wait 669 | . . 12 181 101 149 48 . 68 . 65 45 Move 4131 | 92 131 113 399 659 410 891 318 340 86 245 447 Hop . | . . . . . . . . . . . . Pick Up 81 | 2 6 3 20 12 6 9 . 4 . 4 15 Fast Attach 40 | 6 1 . 5 3 3 13 1 . . 1 7 Attach 36 | . . 2 5 3 4 9 . 2 . 3 8 Detach 1 | . . . . . . 1 . . . . . Swap 72 | . 5 3 14 12 7 10 . 2 . 6 13 Drop 65 | . 1 2 17 11 3 11 . 4 . 3 13 Fire 422 | 2 3 2 87 45 41 130 1 14 . 42 55 Melee . | . . . . . . . . . . . . Ram . | . . . . . . . . . . . . Kick 12 | . . 1 7 . . 3 . . . . 1 Crush 1 | . . . . . . 1 . . . . . Escape Stasis . | . . . . . . . . . . . . Rewire . | . . . . . . . . . . . . Trap . | . . . . . . . . . . . . Miscellaneous . | . . . . . . . . . . . . Route ------- -11/Scrapyard -10/Materials -9/Materials -9/Storage -8/Materials -7/Factory -6/Factory -6/Lower Caves -6/Lower Caves -6/Data Miner -5/Proximity Caves -5/Factory (discovered 1 exit: Fac) History --------- Turn | Location | Event 2 | -11/Scrapyard | Met Revision 17 83 | -11/Scrapyard | Discovered new exit (range 8) 117 | -11/Scrapyard | Entered Materials 262 | -10/Materials | Discovered new exit (range 6) 295 | -10/Materials | Entered another Materials area 295 | -9/Materials | Evolved 2 slots: Propulsion x2 318 | -9/Materials | Build established: Mutant 451 | -9/Materials | Discovered new exit (range 16) 494 | -9/Materials | Entered Storage 606 | -9/Storage | Lost 5 parts (1p3n1w) 979 | -9/Storage | Core integrity fell below 50% 1156 | -9/Storage | Met a pair of Derelict thieves 1480 | -9/Storage | Core integrity fell below 20% 1588 | -9/Storage | Build established: Scavenger-Mutant 1608 | -9/Storage | Discovered new exit (range 16) 1708 | -9/Storage | Entered Materials 1708 | -8/Materials | Evolved 2 slots: Utility x2 2691 | -8/Materials | System corruption reached 10% 2721 | -8/Materials | Lost 3 parts (2n1u) 2753 | -8/Materials | Discovered new exit (range 12) 2793 | -8/Materials | Entered Factory 2793 | -7/Factory | Evolved 2 slots: Propulsion x1, Utility x1 2980 | -7/Factory | Build established: Mutant 3106 | -7/Factory | Garrison activated, responded to threat 3511 | -7/Factory | Build established: Scavenger-Mutant 3566 | -7/Factory | Discovered new exit (range 15) 3594 | -7/Factory | Entered another Factory area 3594 | -6/Factory | Evolved 2 slots: Power x1, Utility x1 4032 | -6/Factory | Lost 3 parts (2n1u) 4259 | -6/Factory | Lost 4 parts (1p2n1u) 4608 | -6/Factory | Build established: Mutant 4670 | -6/Factory | Lost 3 parts (1p1n1u) 4927 | -6/Factory | System corruption reached 10% 5639 | -6/Factory | Discovered new exit (range 4) 5645 | -6/Factory | Entered Lower Caves 5851 | -6/Lower Caves | Identified exit to Lower Caves 6022 | -6/Lower Caves | Encountered a Warlord checkpoint 6159 | -6/Lower Caves | Entered another Lower Caves area 6575 | -6/Lower Caves | Learned location of 1 exit from Proximity Caves 6783 | -6/Lower Caves | Learned location of 1 exit from Factory 6804 | -6/Lower Caves | Discovered new exit (range 7) 6821 | -6/Lower Caves | Entered Data Miner 6821 | -6/Data Miner | Discovered new exit (range 6) 6842 | -6/Data Miner | Met Data Miner 6893 | -6/Data Miner | Learned location of Section 7 (-2) 6893 | -6/Data Miner | Acquired the access code to Warlord's prototype stash 6922 | -6/Data Miner | Received God Mode back door access code from Data Miner 6959 | -6/Data Miner | Entered Proximity Caves 6960 | -5/Proximity Caves | Identified exit to Factory 6992 | -5/Proximity Caves | Attracted the attention of an 0b10 checkpoint 7146 | -5/Proximity Caves | Core integrity fell below 50% 7147 | -5/Proximity Caves | Escorted by Enhanced Grunt 7176 | -5/Proximity Caves | Lost 5 parts (2p3n) 7816 | -5/Proximity Caves | Lost 3 parts (1p1u1w) 7839 | -5/Proximity Caves | Learned 8 Factory zone layouts 7880 | -5/Proximity Caves | Entered Factory 7880 | -5/Factory | Evolved 2 slots: Propulsion x1, Utility x1 7881 | -5/Factory | Identified exit to Factory 8528 | -5/Factory | Lost 5 parts (1p2n2u) 8946 | -5/Factory | Cargo convoy interrupted 8961 | -5/Factory | Incoming assault squad redirected 8962 | -5/Factory | Core integrity fell below 50% 8967 | -5/Factory | Core integrity fell below 20% 8970 | -5/Factory | Destroyed by X-77 Beamer with Gatling Laser Last Messages --------------- 08961_ Fabricator disabled. 08961_ U-05 Engineer builds a Wall. 08962_ Nuclear Reactor explodes. 08962_ >> DECODED: Antigrav System location. 08962_ T-07 Excavator destroyed. 08962_ H-66 Slayer destroyed. 08962_ U-05 Engineer lays Concrete. 08962_ Fission Core destroyed. 08963_ U-05 Engineer lays Concrete. 08964_ Penetrated by Slug. 08964_ U-05 Engineer destroyed. 08964_ Penetrated by Slug. 08966_ U-05 Engineer builds a Wall. 08967_ NVZA#IUUL/Q&TDT/ SQHO 08967_ Acquired Grenade Launcher. 08967_ Penetrated by Slug. 08968_ Grenade Launcher destroyed. [Achievement: First Step to Greatness] [Achievement: 5k Club] [Achievement: 10k Club] Map ----- +----------------------------------------------------+ | ???????????????????# #####+####??????????????????? | | ???????????????????# ??????????????????? | | ??????????????????## #####+####??????????????????? | | ????????###???????# #?# #??????????????????? | | ????????# #???????#T #?# #??????????????????? | | ??????#######?????## #?# #??????????????????? | | ??????# #??????# #?# #??????????????????? | | ??????+ "" #??????# #?# #??????????????????? | | ??????# """ #??????# #?# #??????????????????? | | ??????# "R #??????# #?###+####??????????????????? | | ??????+ """ ######## ##### ### ??????????????????? | | ??????# """ # # # ??????????????????? | | ??????# # [ # # ??????????????????? | | ??????####### " + + ??????????????????? | | ?????? #???# T # # ???!??????????????? | | ?????? ##### " h # # ??????????????????? | | ?????! /u % # # ??????????????????? | | ?????? ####### ; # ??????????????????? | | ?????? ##### % ##??????????????????? | | ??????####""" #####???????????????? | | ?????????#"F" #???????????????? | | ?????????#" ]]] p #???????????????? | | ?????????#"""]]] [ x=! ##??????????????? | | ?????????#"""]] xxp!! #??????????????? | | ??????###### p =! [ #??????????????? | | ???? %! @ #??????????????? | | ???? | ! #??????????????? | | ???? |%! #??????????????? | | ?????#####+# ! ; "???????????? | | ???????? # # """ ????????? | | ?????? ???# """ """ #?? ????????? | | ????????????# """ """ ###p ##???? ???????? | | ????????????# """ """ #?# #??[???? ???????? | | ????????????# #?# ##########??????? | | ?????????!???? #?# # #??????? | | ????????????? #######?# # """ #??????? | | ????????????? ????????# # """ #??????? | | ????????????? ????????# # """ #??????? | | ????????????# ###?????????# + #??????? | | ???????!????### #?##+######### # """ #??????? | | ??????????????#??? # # """ #??????? | | ??????????????????? """""" # # """ #??????? | | ?????????????????? """""" # # #??????? | | ????????????=????? """""" + ##########??????? | | ?????????]]??????? """""" # # #??????? | | ????????????????? # # #??????? | | ????????????????# """""" # # #??????? | | ????????????????# """""" # # ! #??????? | | ????????????????# """""" # + #??????? | | =????????????????? """""" # # #??????? | +----------------------------------------------------+ Best States ------------- Heat Dissipation 89 Energy Generation 45 Energy Capacity 500 Matter Stores 300 Matter Capacity 300 Sight Range 22 Terrain Scan Density 10 Jamming Range 14 Armor Coverage 825 Evasion (%) 55 Recoil Reduction 6 Kinecelleration 30 Offensive Hacking 10 Item Schematics ----------------- Combat Drone Bay | -6/Data Miner | Free Lgt. Regenerative Plating | -6/Data Miner | Free Enh. Armored Leg | -6/Data Miner | Free Prc. Energy Filter | -6/Data Miner | Free Neutron Cannon | -6/Data Miner | Free Centrium Wheel | -6/Data Miner | Free Imp. Cloaking Device | -6/Data Miner | Free Hardcell Cannon | -6/Data Miner | Free Lgt. Antimatter Reactor | -6/Data Miner | Free Imp. Antigrav System | -6/Data Miner | Free Biometal Leg | -6/Data Miner | Free Hyp. Railgun | -6/Data Miner | Free Robot Schematics ------------------ A-15 Conveyor | -6/Data Miner | Free L-41 Fighter | -6/Data Miner | Free R-10 Processor | -6/Data Miner | Free E-15 Imp | -6/Data Miner | Free Fabricated ------------ Nothing Alien Tech Used ----------------- None Achievements -------------- 10k Club 5k Club Close Call Crack Shot Decoder Ring Everything Is Under Control First Step to Greatness Hey, That's Mine! I'm Back, Baby! It's Just You Librarian Loot Pinata Made in Tau Ceti IV No Signal Oh No You Don't! Oops Risk Taker Serviceable Loadout Storm Trooper System Compromised The Oracle Tourist Troublemaker Uninvited Guest Challenges ------------ None Game ------ Seed WarpEnhancedFlamer Manual? 0 Play Time 01:22:04 Cumulative 1.3 hours Start 2024.04.13 @ 22:12:18 End 2024.04.14 @ 18:44:54 Sessions 7 Manual Loads 0 Difficulty Rogue Special Mode None Game No. 1 Rogue 1 Adventurer 0 Explorer 0 Win Type - Total 0 Types 0/0/0/0/0/0/0/0/0 Lore% 2 Gallery% 6 Achievement% 9 Wizard Run 0 Options --------- Layout 0 ASCII 0 Keyboard 1 Movement Numpad Keybinds 0 Fullscreen 1 Font 24/X11 Map View 76x50 Zoom Use 0% Tactical HUD 1 Map Filters NONE Filters NONE Steam 1 RUN: e79c0730-9942-424e-8295-4f4e2d41c9ce